{"text_format":"3","workbook":"xlsx","n_sheets":2,"sheets":["Hoofdmenu","Evenementen"],"not_rendered":{"macros":1,"defined_names":1},"read":"whole","date_system":"1900"}

{"sheet":"Hoofdmenu","index":0,"n_rows":41,"n_cols":9,"rows_kept":41,"merged":[[1,4,1,5]]}
[4]
[{"$nulls":3},"PASGEMIDDELDE:",{"$f":"SUM(I2/H2)","v":{"$error":"#DIV/0!"}},null,null,{"$f":"SUM(H5:H14)","v":0},{"$f":"SUM(I5:I14)","v":0}]
[]
[{"$nulls":3},"Omschrijving","Factor","Games","Pinfall","Nw Games","Nw Pinfall"]
[null,null,1,{"$nulls":4},{"$f":"IF(D5<>\"\",SUM(E5*F5),\"\")","v":""},{"$f":"IF(D5<>\"\",SUM(E5*G5),\"\")","v":""}]
[null,null,2,{"$nulls":4},{"$f":"IF(D6<>\"\",SUM(E6*F6),\"\")","v":""},{"$f":"IF(D6<>\"\",SUM(E6*G6),\"\")","v":""}]
[null,null,3,{"$nulls":4},"",""]
[null,null,4,{"$nulls":4},"",""]
[null,null,5,{"$nulls":4},"",""]
[null,null,6,{"$nulls":4},"",""]
[null,null,7,{"$nulls":4},"",""]
[null,null,8,{"$nulls":4},"",""]
[null,null,9,{"$nulls":4},"",""]
[null,null,10,{"$nulls":4},"",""]
[]
[{"$nulls":3},"Algemeen:"]
[{"$nulls":3},"U kunt maximaal 10 leagues/evenementen opgeven."]
[]
[{"$nulls":3},"Toevoegen league/evenement:"]
[{"$nulls":3},"Klik op een lege regel onder \"Omschrijving\" en maak uit de getoonde lijst uw keuze."]
[{"$nulls":3},"De vermeningvuldigingsfactor wordt automatisch toegevoegd."]
[]
[{"$nulls":3},"Verwijderen league/evenement:"]
[{"$nulls":3},"Klik 1x op het te verwijderen item en druk op de \"Delete' toets. Klik hierna op \"Updaten\"."]
[]
[{"$nulls":3},"Invullen scores:"]
[{"$nulls":3},"Vul onder de kolommen \"Games\" en \"Pinfall\" de behaalde scores in. Klik nu op \"Updaten data\"."]
[{"$nulls":3},"In de kolommen \"Nw Games' en Nw Pinfall\" komen automatisch de scores voor het berekenen van"]
[{"$nulls":3},"het nieuwe pasgemiddelde."]
[{"$nulls":3},"Bovenaan ziet u het pasgemiddelde, berekend over alle ingevulde leagues/evenementen, conform de"]
[{"$nulls":3},"berekeningsmethode van het N.B.F."]
[]
[{"$nulls":3},"Toelichting:"]
[{"$nulls":3},"U kunt slechts maximaal 5 pins gemiddeld zakken voor het nieuwe seizoen."]
[{"$nulls":3},"Uw gemiddelde voor het nieuwe seizoen kan onbeperkt stijgen."]
[]
[{"$nulls":3},"Sluiten:"]
[{"$nulls":3},"Bij het afsluiten worden alle mutaties automatisch opgeslagen."]
[]
[{"$nulls":3},"Wissen resultaten:"]
[{"$nulls":3},"Klik op de knop \"Wissen Resultaten\" om een nieuw/leeg seizoen te kunnen beginnen."]

{"sheet":"Evenementen","index":1,"n_rows":11,"n_cols":1,"rows_kept":11,"hidden":true}
[]
["Huisleague maandag"]
["Huisleague dinsdag"]
["Huisleague woensdag"]
["Huisleague donderdag"]
["Huisleague vrijdag"]
["Huisleague invaller"]
["Nationale league"]
["Regionale league"]
["Verenigingskampioenschappen"]
["Toernooi"]